fUST/lending_fUST_20250624
["ID","MTS","AMOUNT","RATE_DAILY","PERIOD"]
[367306686,1750743040096,-536.38,0.00019178,2]
[367306688,1750743040105,-460.0,0.00019178,2]
[367306690,1750743040115,-460.0,0.00019178,2]
[367306692,1750743040124,-460.0,0.00019178,2]
[367306694,1750743040134,-460.0,0.00019178,2]
[367306696,1750743040144,-460.0,0.00019178,2]
[367306698,1750743040153,-350.0,0.00019178,2]
[367306700,1750743040163,-460.0,0.00019178,2]
[367306702,1750743040173,-460.0,0.00019178,2]
[367306704,1750743040182,-460.0,0.00019178,2]
[367306706,1750743040192,-460.0,0.00019178,2]
[367306708,1750743040202,-3055.74,0.00019178,2]
[367306710,1750743040211,-431.8339065,0.00019178,2]
[367306712,1750743040221,-432.75046842,0.00019178,2]
[367306714,1750743040234,-460.0,0.00019178,2]
[367306716,1750743040244,-460.0,0.00019178,2]
[367306718,1750743040253,-460.0,0.00019178,2]
[367306720,1750743040262,-432.20877268,0.00019178,2]
[367306722,1750743040273,-221.08437545,0.00019178,2]
[367306724,1750743040283,-460.0,0.00019178,2]
[367306726,1750743040293,-543.58219566,0.00019178,2]
[367306728,1750743040304,-460.0,0.00019178,2]
[367306730,1750743040314,-460.0,0.00019178,2]
[367306732,1750743040323,-450.08802296,0.00019178,2]
[367306734,1750743040333,-488.86391887,0.00019178,2]
[367306735,1750743040343,-432.71120242,0.00019178,2]
[367306738,1750743040353,-460.0,0.00019178,2]
[367306740,1750743040363,-1976.7,0.00019178,2]
[367306742,1750743040373,-430.0,0.00019178,2]
[367306744,1750743040382,-460.0,0.00019178,2]
[367306746,1750743040392,-460.0,0.00019178,2]
[367306747,1750743040402,-460.0,0.00019178,2]
[367306750,1750743040413,-317.82226728,0.00019178,2]
[367306752,1750743040422,-460.0,0.00019178,2]
[367306753,1750743040432,-462.95534283,0.00019178,2]
[367306755,1750743040442,-460.0,0.00019178,2]
[367306758,1750743040452,-545.90265322,0.00019178,2]
[367306760,1750743040463,-460.0,0.00019178,2]
[367306762,1750743040473,-460.0,0.00019178,2]
[367306763,1750743040484,-837.31,0.00019178,2]
[367306765,1750743040495,-433.38330224,0.00019178,2]
[367306767,1750743040505,-460.0,0.00019178,2]
[367306770,1750743040515,-432.41560209,0.00019178,2]
[367306772,1750743040525,-431.79363285,0.00019178,2]
[367306774,1750743040535,-460.0,0.00019178,2]
[367306775,1750743040545,-460.0,0.00019178,2]
[367306777,1750743040554,-460.0,0.00019178,2]
[367306779,1750743040564,-460.0,0.00019178,2]
[367306781,1750743040573,-460.0,0.00019178,2]
[367306784,1750743040583,-460.0,0.00019178,2]
[367306786,1750743040592,-563.99636467,0.00019178,2]
[367306788,1750743040602,-408.29398825,0.00019178,2]
[367306790,1750743040611,-460.0,0.00019178,2]
[367306792,1750743040621,-460.0,0.00019178,2]
[367306794,1750743040630,-460.0,0.00019178,2]
[367306796,1750743040640,-460.0,0.00019178,2]
[367306798,1750743040649,-460.0,0.00019178,2]
[367306800,1750743040658,-460.0,0.00019178,2]
[367306802,1750743040667,-822.37,0.00019178,2]
[367306804,1750743040676,-460.0,0.00019178,2]
[367306806,1750743040686,-460.0,0.00019178,2]
[367306808,1750743040695,-438.27894563,0.00019178,2]
[367306810,1750743040705,-460.0,0.00019178,2]
[367306812,1750743040714,-460.0,0.00019178,2]
[367306814,1750743040723,-460.0,0.00019178,2]
[367306816,1750743040733,-460.0,0.00019178,2]
[367306818,1750743040743,-460.0,0.00019178,2]
[367306819,1750743040752,-460.0,0.00019178,2]
[367306821,1750743040762,-460.0,0.00019178,2]
[367306823,1750743040771,-510.11,0.00019178,2]
[367306825,1750743040780,-460.0,0.00019178,2]
[367306827,1750743040789,-460.0,0.00019178,2]
[367306829,1750743040799,-1755.78,0.00019178,2]
[367306831,1750743040808,-460.0,0.00019178,2]
[367306833,1750743040817,-509.18,0.00019178,2]
[367306835,1750743040826,-435.57311899,0.00019178,2]
[367306837,1750743040835,-460.0,0.00019178,2]
[367306839,1750743040844,-460.0,0.00019178,2]
[367306841,1750743040854,-656.37,0.00019178,2]
[367306842,1750743040863,-460.0,0.00019178,2]
[367306844,1750743040872,-460.0,0.00019178,2]
[367306846,1750743040881,-602.46,0.00019178,2]
[367306848,1750743040890,-460.0,0.00019178,2]
[367306849,1750743040899,-460.0,0.00019178,2]
[367306851,1750743040909,-460.0,0.00019178,2]
[367306854,1750743040918,-460.0,0.00019178,2]
[367306856,1750743040927,-460.0,0.00019178,2]
[367306858,1750743040936,-487.16130312,0.00019178,2]
[367306859,1750743040945,-460.0,0.00019178,2]
[367306861,1750743040955,-460.0,0.00019178,2]
[367306863,1750743040964,-1729.23,0.00019178,2]
[367306865,1750743040974,-460.0,0.00019178,2]
[367306866,1750743040983,-460.0,0.00019178,2]
[367306868,1750743040992,-460.0,0.00019178,2]
[367306870,1750743041002,-460.0,0.00019178,2]
[367306872,1750743041011,-460.0,0.00019178,2]
[367306874,1750743041020,-460.0,0.00019178,2]
[367306876,1750743041030,-460.0,0.00019178,2]
[367306877,1750743041039,-460.0,0.00019178,2]
[367306879,1750743041048,-460.0,0.00019178,2]
[367306881,1750743041057,-440.0,0.00019178,2]
[367306883,1750743041066,-443.33735209,0.00019178,2]
[367306884,1750743041075,-460.0,0.00019178,2]
[367306886,1750743041085,-460.0,0.00019178,2]
[367306888,1750743041094,-460.0,0.00019178,2]
[367306890,1750743041103,-458.57137614,0.00019178,2]
[367306891,1750743041112,-1531.26,0.00019178,2]
[367306893,1750743041121,-460.0,0.00019178,2]
[367306895,1750743041130,-460.0,0.00019178,2]
[367306897,1750743041140,-430.0,0.00019178,2]
[367306899,1750743041149,-405.27156078,0.00019178,2]
[367306900,1750743041158,-460.0,0.00019178,2]
[367306902,1750743041168,-448.0,0.00019178,2]
[367306904,1750743041177,-460.0,0.00019178,2]
[367306905,1750743041187,-418.53318884,0.00019178,2]
[367306907,1750743041196,-510.25510389,0.00019178,2]
[367306909,1750743041205,-460.0,0.00019178,2]
[367306911,1750743041214,-404.29528352,0.00019178,2]
[367306913,1750743041224,-460.0,0.00019178,2]
[367306915,1750743041237,-460.0,0.00019178,2]
[367306916,1750743041247,-460.0,0.00019178,2]
[367306918,1750743041256,-1503.83,0.00019178,2]
[367306920,1750743041265,-347.33004132,0.00019178,2]
[367306921,1750743041275,-415.05227428,0.00019178,2]
[367306923,1750743041284,-460.0,0.00019178,2]
[367306925,1750743041293,-460.0,0.00019178,2]
[367306926,1750743041303,-460.0,0.00019178,2]
[367306928,1750743041312,-534.88,0.00019178,2]
[367306930,1750743041322,-460.0,0.00019178,2]
[367306932,1750743041331,-500.0,0.00019178,2]
[367306934,1750743041340,-500.0,0.00019178,2]
[367306936,1750743041349,-460.0,0.00019178,2]
[367306937,1750743041358,-707.88,0.00019178,2]
[367306939,1750743041367,-460.0,0.00019178,2]
[367306941,1750743041376,-2780.68,0.00019178,2]
[367306943,1750743041386,-430.0,0.00019178,2]
[367306945,1750743041396,-460.0,0.00019178,2]
[367306946,1750743041405,-494.92698807,0.00019178,2]
[367306948,1750743041415,-460.0,0.00019178,2]
[367306950,1750743041424,-500.0,0.00019178,2]
[367306953,1750743041434,-460.0,0.00019178,2]
[367306956,1750743041443,-460.0,0.00019178,2]
[367306957,1750743041453,-781.19,0.00019178,2]
[367306959,1750743041462,-460.0,0.00019178,2]
[367306961,1750743041471,-460.0,0.00019178,2]
[367306963,1750743041481,-460.0,0.00019178,2]
[367306965,1750743041490,-460.0,0.00019178,2]
[367306967,1750743041499,-4478.15,0.00019178,2]
[367306969,1750743041508,-460.0,0.00019178,2]
[367306971,1750743041517,-460.0,0.00019178,2]
[367306972,1750743041526,-552.98,0.00019178,2]
[367306974,1750743041535,-1166.01,0.00019178,2]
[367306976,1750743041544,-460.0,0.00019178,2]
[367306978,1750743041554,-560.12724692,0.00019178,2]
[367306979,1750743041563,-1768.33,0.00019178,2]
[367306980,1750743041572,-1199.21,0.00019178,2]
[367306982,1750743041581,-460.0,0.00019178,2]
[367306984,1750743041590,-627.1,0.00019178,2]
[367306986,1750743041600,-434.55644681,0.00019178,2]
[367306987,1750743041609,-485.1,0.00019178,2]
[367306989,1750743041619,-460.0,0.00019178,2]
[367306991,1750743041628,-460.0,0.00019178,2]
[367306993,1750743041637,-460.0,0.00019178,2]
[367306994,1750743041647,-460.0,0.00019178,2]
[367306996,1750743041656,-460.0,0.00019178,2]
[367306998,1750743041665,-460.0,0.00019178,2]
[367307000,1750743041674,-460.0,0.00019178,2]
[367307002,1750743041683,-460.0,0.00019178,2]
[367307003,1750743041692,-460.0,0.00019178,2]
[367307005,1750743041702,-460.0,0.00019178,2]
[367307007,1750743041711,-460.0,0.00019178,2]
[367307009,1750743041720,-717.79,0.00019178,2]
[367307010,1750743041730,-469.63,0.00019178,2]
[367307012,1750743041739,-460.0,0.00019178,2]
[367307014,1750743041748,-460.0,0.00019178,2]
[367307016,1750743041757,-460.0,0.00019178,2]
[367307018,1750743041766,-704.28,0.00019178,2]
[367307019,1750743041775,-460.0,0.00019178,2]
[367307021,1750743041784,-568.41,0.00019178,2]
[367307023,1750743041793,-461.4846135,0.00019178,2]
[367307025,1750743041802,-460.0,0.00019178,2]
[367307027,1750743041811,-460.0,0.00019178,2]
[367307028,1750743041820,-460.0,0.00019178,2]
[367307030,1750743041828,-1080.93,0.00019178,2]
[367307032,1750743041837,-460.0,0.00019178,2]
[367307034,1750743041847,-460.0,0.00019178,2]
[367307035,1750743041856,-853.44,0.00019178,2]
[367307037,1750743041865,-1493.19,0.00019178,2]
[367307039,1750743041874,-460.0,0.00019178,2]
[367307041,1750743041885,-460.0,0.00019178,2]
[367307043,1750743041894,-722.09,0.00019178,2]
[367307044,1750743041903,-1002.87,0.00019178,2]
[367307046,1750743041912,-460.0,0.00019178,2]
[367307048,1750743041921,-675.69,0.00019178,2]
[367307050,1750743041930,-460.0,0.00019178,2]
[367307052,1750743041939,-358.22054813,0.00019178,2]
[367307054,1750743041949,-557.44,0.00019178,2]
[367307055,1750743041958,-460.0,0.00019178,2]
[367307057,1750743041967,-460.0,0.00019178,2]
[367307059,1750743041976,-703.42,0.00019178,2]
[367307061,1750743041986,-2262.17,0.00019178,2]
[367307063,1750743041995,-460.0,0.00019178,2]
[367307065,1750743042004,-460.0,0.00019178,2]
[367307066,1750743042013,-460.0,0.00019178,2]
[367307068,1750743042022,-460.0,0.00019178,2]
[367307070,1750743042031,-460.0,0.00019178,2]
[367307072,1750743042040,-460.0,0.00019178,2]
[367307074,1750743042049,-460.0,0.00019178,2]
[367307076,1750743042059,-460.0,0.00019178,2]
[367307077,1750743042069,-1667.01,0.00019178,2]
[367307079,1750743042078,-460.0,0.00019178,2]
[367307081,1750743042087,-390.0,0.00019178,2]
[367307083,1750743042099,-404.83564894,0.00019178,2]
[367307097,1750743042236,-460.0,0.00019178,2]
[367307099,1750743042246,-460.0,0.00019178,2]
[367307101,1750743042255,-460.0,0.00019178,2]
[367307102,1750743042264,-460.0,0.00019178,2]
[367307104,1750743042275,-460.0,0.00019178,2]
[367307106,1750743042284,-1578.82,0.00019178,2]
[367307108,1750743042293,-460.0,0.00019178,2]
[367307110,1750743042302,-328.39257221,0.00019178,2]
[367307111,1750743042312,-437.37159032,0.00019178,2]
[367307113,1750743042321,-460.0,0.00019178,2]
[367307115,1750743042331,-460.0,0.00019178,2]
[367307117,1750743042340,-500.0,0.00019178,2]
[367307119,1750743042349,-460.0,0.00019178,2]
[367307121,1750743042358,-465.188318,0.00019178,2]
[367307123,1750743042367,-235.7849414,0.00019178,2]
[367307124,1750743042376,-151.0,0.000192,2]
[367307126,1750743042386,-280.0,0.00019247,2]
[367307128,1750743042396,-151.0,0.000193,2]
[367307130,1750743042405,-280.0,0.00019364,2]
[367307132,1750743042414,-362.94,0.00019442,3]
[367307134,1750743042423,-181.47,0.00019442,3]
[367307136,1750743042433,-544.44,0.00019442,3]
[367307137,1750743042441,-1000.0,0.00019451,2]
[367307139,1750743042451,-422.21608434,0.00019451,2]
[367307141,1750743042460,-200.01,0.00019451,2]
[367307143,1750743042469,-608.37159644,0.00019451,2]
[367307145,1750743042478,-460.0,0.00019452,2]
[367307147,1750743042487,-500.56,0.00019452,2]
[367307148,1750743042496,-460.0,0.00019452,2]
[367307150,1750743042505,-460.0,0.00019452,2]
[367307152,1750743042514,-430.0,0.00019452,2]
[367307154,1750743042522,-460.0,0.00019452,2]
[367307156,1750743042531,-278.15543846,0.00019452,2]
[367307158,1750743042540,-440.0,0.00019452,2]
[367307159,1750743042549,-460.0,0.00019452,2]
[367307161,1750743042558,-437.42308816,0.00019452,2]
[367307163,1750743042567,-465.22,0.00019452,2]
[367307165,1750743042577,-460.0,0.00019452,2]
[367307167,1750743042586,-460.0,0.00019452,2]
[367307169,1750743042595,-460.0,0.00019452,2]
[367307171,1750743042604,-449.63948808,0.00019452,2]
[367307172,1750743042614,-460.0,0.00019452,2]
[367307174,1750743042623,-460.0,0.00019452,2]
[367307176,1750743042633,-460.0,0.00019452,2]
[367307178,1750743042642,-460.0,0.00019452,2]
[367307180,1750743042651,-460.0,0.00019452,2]
[367307182,1750743042660,-460.0,0.00019452,2]
[367307183,1750743042669,-460.0,0.00019452,2]
[367307185,1750743042678,-460.0,0.00019452,2]
[367307187,1750743042688,-460.0,0.00019452,2]
[367307189,1750743042697,-460.0,0.00019452,2]
[367307191,1750743042706,-436.24720046,0.00019452,2]
[367307193,1750743042716,-460.0,0.00019452,2]
[367307195,1750743042725,-460.0,0.00019452,2]
[367307196,1750743042734,-387.90137834,0.00019452,2]
[367307198,1750743042745,-283.86131689,0.00019452,2]
[367307200,1750743042754,-460.0,0.00019452,2]
[367307202,1750743042763,-460.0,0.00019452,2]
[367307204,1750743042773,-438.80370224,0.00019452,2]
[367307206,1750743042782,-1321.497577,0.00019452,2]
[367307207,1750743042791,-460.0,0.00019452,2]
[367307209,1750743042800,-460.0,0.00019452,2]
[367307210,1750743042809,-1321.497577,0.00019452,2]
[367307212,1750743042818,-347.79695946,0.00019452,2]
[367307214,1750743042827,-460.0,0.00019452,2]
[367307215,1750743042836,-460.0,0.00019452,2]
[367307217,1750743042846,-704.83,0.00019452,2]
[367307219,1750743042863,-171.39384974,0.00019452,2]
[367307221,1750743042873,-460.0,0.00019452,2]
[367307223,1750743042882,-460.0,0.00019452,2]
[367307224,1750743042891,-460.0,0.00019452,2]
[367307226,1750743042901,-460.0,0.00019452,2]
[367307228,1750743042910,-151.0,0.00019452,2]
[367307230,1750743042919,-460.0,0.00019452,2]
[367307231,1750743042928,-460.0,0.00019452,2]
[367307233,1750743042938,-460.0,0.00019452,2]
[367307235,1750743042947,-480.43,0.00019452,2]
[367307238,1750743042956,-460.0,0.00019452,2]
[367307240,1750743042965,-460.0,0.00019452,2]
[367307243,1750743042974,-460.0,0.00019452,2]
[367307245,1750743042983,-460.0,0.00019452,2]
[367307247,1750743042993,-460.0,0.00019452,2]
[367307249,1750743043002,-460.0,0.00019452,2]
[367307250,1750743043011,-460.0,0.00019452,2]
[367307252,1750743043020,-460.0,0.00019452,2]
[367307254,1750743043031,-460.0,0.00019452,2]
[367307256,1750743043040,-460.0,0.00019452,2]
[367307258,1750743043049,-460.0,0.00019452,2]
[367307260,1750743043058,-460.0,0.00019452,2]
[367307262,1750743043067,-460.0,0.00019452,2]
[367307265,1750743043077,-460.0,0.00019452,2]
[367307268,1750743043086,-460.0,0.00019452,2]
[367307271,1750743043095,-460.0,0.00019452,2]
[367307274,1750743043104,-460.0,0.00019452,2]
[367307277,1750743043113,-460.0,0.00019452,2]
[367307279,1750743043123,-400.0,0.00019452,2]
[367307282,1750743043132,-460.0,0.00019452,2]
[367307285,1750743043141,-460.0,0.00019452,2]
[367307288,1750743043150,-460.0,0.00019452,2]
[367307291,1750743043160,-460.0,0.00019452,2]
[367307293,1750743043169,-460.0,0.00019452,2]
[367307296,1750743043178,-472.93453681,0.00019452,2]
[367307299,1750743043188,-460.0,0.00019452,2]
[367307302,1750743043197,-460.0,0.00019452,2]
[367307304,1750743043206,-460.0,0.00019452,2]
[367307305,1750743043215,-460.0,0.00019452,2]
[367307307,1750743043225,-460.0,0.00019452,2]
[367307309,1750743043237,-536.38,0.00019452,2]
[367307311,1750743043247,-460.0,0.00019452,2]
[367307313,1750743043256,-460.0,0.00019452,2]
[367307315,1750743043265,-389.65206429,0.00019452,2]
[367307316,1750743043274,-460.0,0.00019452,2]
[367307318,1750743043283,-460.0,0.00019452,2]
[367307320,1750743043292,-460.0,0.00019452,2]
[367307322,1750743043301,-326.86308249,0.00019452,2]
[367307324,1750743043310,-423.0909058,0.00019452,2]
[367307325,1750743043320,-460.0,0.00019452,2]
[367307327,1750743043329,-3055.74,0.00019452,2]
[367307329,1750743043339,-327.85464959,0.00019452,2]
[367307331,1750743043348,-460.0,0.00019452,2]
[367307333,1750743043357,-410.0,0.00019452,2]
[367307335,1750743043366,-460.0,0.00019452,2]
[367307336,1750743043375,-460.0,0.00019452,2]
[367307338,1750743043384,-460.0,0.00019452,2]
[367307340,1750743043394,-1976.7,0.00019452,2]
[367307342,1750743043403,-460.0,0.00019452,2]
[367307344,1750743043413,-460.0,0.00019452,2]
[367307345,1750743043422,-497.905898,0.00019452,2]
[367307347,1750743043431,-460.0,0.00019452,2]
[367307349,1750743043441,-460.0,0.00019452,2]
[367307351,1750743043451,-837.31,0.00019452,2]
[367307353,1750743043460,-347.26803242,0.00019452,2]
[367307355,1750743043470,-460.0,0.00019452,2]
[367307357,1750743043479,-491.03676348,0.00019452,2]
[367307358,1750743043489,-460.0,0.00019452,2]
[367307360,1750743043498,-460.0,0.00019452,2]
[367307362,1750743043507,-460.0,0.00019452,2]
[367307364,1750743043516,-460.0,0.00019452,2]
[367307366,1750743043525,-460.0,0.00019452,2]
[367307367,1750743043535,-460.0,0.00019452,2]
[367307369,1750743043544,-460.0,0.00019452,2]
[367307371,1750743043553,-460.0,0.00019452,2]
[367307373,1750743043562,-822.37,0.00019452,2]
[367307375,1750743043571,-460.0,0.00019452,2]
[367307377,1750743043581,-460.0,0.00019452,2]
[367307378,1750743043590,-460.0,0.00019452,2]
[367307380,1750743043600,-460.0,0.00019452,2]
[367307382,1750743043609,-460.0,0.00019452,2]
[367307384,1750743043619,-460.0,0.00019452,2]
[367307386,1750743043628,-460.0,0.00019452,2]
[367307387,1750743043638,-460.0,0.00019452,2]
[367307389,1750743043647,-460.0,0.00019452,2]
[367307391,1750743043656,-460.0,0.00019452,2]
[367307393,1750743043665,-510.11,0.00019452,2]
[367307395,1750743043675,-1755.78,0.00019452,2]
[367307396,1750743043684,-460.0,0.00019452,2]
[367307398,1750743043694,-460.0,0.00019452,2]
[367307400,1750743043703,-460.0,0.00019452,2]
[367307402,1750743043712,-656.37,0.00019452,2]
[367307404,1750743043722,-460.0,0.00019452,2]
[367307406,1750743043731,-460.0,0.00019452,2]
[367307408,1750743043740,-602.46,0.00019452,2]
[367307409,1750743043750,-460.0,0.00019452,2]
[367307411,1750743043759,-460.0,0.00019452,2]
[367307413,1750743043768,-460.0,0.00019452,2]
[367307415,1750743043777,-430.0,0.00019452,2]
[367307417,1750743043787,-151.0,0.00019452,2]
[367307419,1750743043796,-1729.23,0.00019452,2]
[367307421,1750743043805,-460.0,0.00019452,2]
[367307423,1750743043815,-460.0,0.00019452,2]
[367307425,1750743043824,-460.0,0.00019452,2]
[367307427,1750743043833,-151.0,0.00019452,2]
[367307429,1750743043842,-460.0,0.00019452,2]
[367307431,1750743043852,-460.0,0.00019452,2]
[367307433,1750743043861,-440.0,0.00019452,2]
[367307435,1750743043871,-460.0,0.00019452,2]
[367307437,1750743043880,-460.0,0.00019452,2]
[367307439,1750743043889,-460.0,0.00019452,2]
[367307441,1750743043898,-245.86945585,0.00019452,2]
[367307443,1750743043907,-460.0,0.00019452,2]
[367307445,1750743043916,-1531.26,0.00019452,2]
[367307447,1750743043925,-460.0,0.00019452,2]
[367307449,1750743043934,-460.0,0.00019452,2]
[367307450,1750743043943,-460.0,0.00019452,2]
[367307452,1750743043953,-460.0,0.00019452,2]
[367307455,1750743043962,-460.0,0.00019452,2]
[367307456,1750743043971,-460.0,0.00019452,2]
[367307457,1750743043980,-177.35221535,0.00019452,2]
[367307458,1750743043989,-460.0,0.00019452,2]
[367307459,1750743043998,-1503.83,0.00019452,2]
[367307460,1750743044007,-460.0,0.00019452,2]
[367307461,1750743044016,-460.0,0.00019452,2]
[367307462,1750743044024,-534.88,0.00019452,2]
[367307463,1750743044033,-460.0,0.00019452,2]
[367307464,1750743044042,-460.0,0.00019452,2]
[367307465,1750743044051,-707.88,0.00019452,2]
[367307466,1750743044060,-2780.68,0.00019452,2]
[367307467,1750743044070,-494.92698807,0.00019452,2]
[367307468,1750743044079,-460.0,0.00019452,2]
[367307469,1750743044087,-460.0,0.00019452,2]
[367307470,1750743044096,-151.277573,0.00019452,2]
[367307471,1750743044105,-781.19,0.00019452,2]
[367307472,1750743044114,-151.0,0.00019452,2]
[367307473,1750743044123,-151.0,0.00019452,2]
[367307474,1750743044132,-460.0,0.00019452,2]
[367307475,1750743044140,-460.0,0.00019452,2]
[367307476,1750743044149,-4478.15,0.00019452,2]
[367307477,1750743044158,-460.0,0.00019452,2]
[367307478,1750743044167,-552.98,0.00019452,2]
[367307479,1750743044176,-1166.01,0.00019452,2]
[367307480,1750743044185,-460.0,0.00019452,2]
[367307481,1750743044195,-1768.33,0.00019452,2]
[367307482,1750743044203,-1199.21,0.00019452,2]
[367307483,1750743044212,-627.1,0.00019452,2]
[367307484,1750743044221,-485.1,0.00019452,2]
[367307485,1750743044232,-460.0,0.00019452,2]
[367307486,1750743044242,-460.0,0.00019452,2]
[367307487,1750743044251,-383.379355,0.00019452,2]
[367307488,1750743044259,-460.0,0.00019452,2]
[367307489,1750743044268,-460.0,0.00019452,2]
[367307490,1750743044278,-460.0,0.00019452,2]
[367307491,1750743044288,-460.0,0.00019452,2]
[367307492,1750743044298,-430.0,0.00019452,2]
[367307493,1750743044309,-383.379355,0.00019452,2]
[367307494,1750743044323,-460.0,0.00019452,2]
[367307495,1750743044332,-460.0,0.00019452,2]
[367307496,1750743044342,-717.79,0.00019452,2]
[367307497,1750743044351,-469.63,0.00019452,2]
[367307498,1750743044361,-460.0,0.00019452,2]
[367307499,1750743044371,-460.0,0.00019452,2]
[367307500,1750743044381,-460.0,0.00019452,2]
[367307501,1750743044390,-704.28,0.00019452,2]
[367307502,1750743044400,-400.0,0.00019452,2]
[367307503,1750743044409,-568.41,0.00019452,2]
[367307504,1750743044419,-151.0,0.00019452,2]
[367307506,1750743044429,-460.0,0.00019452,2]
[367307507,1750743044439,-460.0,0.00019452,2]
[367307509,1750743044449,-1080.93,0.00019452,2]
[367307510,1750743044458,-350.0,0.00019452,2]
[367307512,1750743044468,-460.0,0.00019452,2]
[367307514,1750743044477,-853.44,0.00019452,2]
[367307516,1750743044486,-1493.19,0.00019452,2]
[367307518,1750743044496,-460.0,0.00019452,2]
[367307520,1750743044506,-151.0,0.00019452,2]
[367307522,1750743044515,-151.0,0.00019452,2]
[367307524,1750743044524,-184.528007,0.00019452,2]
[367307526,1750743044534,-460.0,0.00019452,2]
[367307528,1750743044543,-722.09,0.00019452,2]
[367307530,1750743044553,-184.528007,0.00019452,2]
[367307532,1750743044561,-1002.87,0.00019452,2]
[367307534,1750743044570,-460.0,0.00019452,2]
[367307536,1750743044580,-675.69,0.00019452,2]
[367307538,1750743044588,-460.0,0.00019452,2]
[367307540,1750743044598,-557.44,0.00019452,2]
[367307542,1750743044607,-703.42,0.00019452,2]
[367307544,1750743044616,-460.0,0.00019452,2]
[367307546,1750743044626,-2262.17,0.00019452,2]
[367307548,1750743044635,-460.0,0.00019452,2]
[367307550,1750743044645,-460.0,0.00019452,2]
[367307552,1750743044654,-150.10202009,0.00019452,2]
[367307554,1750743044664,-460.0,0.00019452,2]
[367307556,1750743044674,-1667.01,0.00019452,2]
[367307558,1750743044684,-460.0,0.00019452,2]
[367307560,1750743044693,-460.0,0.00019452,2]
[367307562,1750743044703,-327.360435,0.00019452,2]
[367307564,1750743044712,-460.0,0.00019452,2]
[367307566,1750743044722,-327.360435,0.00019452,2]
[367307568,1750743044731,-460.0,0.00019452,2]
[367307570,1750743044741,-506.990243,0.00019452,2]
[367307572,1750743044750,-460.0,0.00019452,2]
[367307574,1750743044760,-506.990243,0.00019452,2]
[367307576,1750743044770,-1578.82,0.00019452,2]
[367307578,1750743044779,-460.0,0.00019452,2]
[367307580,1750743044788,-460.0,0.00019452,2]
[367307582,1750743044798,-620.44823912,0.00019452,2]
[367307584,1750743044807,-460.0,0.00019452,2]
[367307586,1750743044816,-151.0,0.000195,2]
[367307588,1750743044826,-280.0,0.00019526,2]
[367307590,1750743044835,-12556.00642039,0.00019527,2]
[367307592,1750743044845,-425.14181427,0.00019527,2]
[367307594,1750743044853,-160.0,0.00019527,2]
[367307596,1750743044862,-836.80226758,0.00019527,2]
[367307598,1750743044871,-160.0,0.00019527,2]
[367307600,1750743044880,-846.68469334,0.00019527,2]
[367307602,1750743044889,-160.0,0.00019527,2]
[367307604,1750743044898,-230.20892031,0.00019527,2]
[367307617,1750743045013,-213.66798275,0.00019527,2]